{"text_format":"1","workbook":"xlsx","n_sheets":1,"sheets":["AUW"],"not_rendered":{"charts":0,"images":1,"macros":0,"external_links":0,"defined_names":2,"comments":0,"pivot_tables":0},"unopened":[],"bounds":{"document_bytes":16777216,"sheet_cells":100000,"rows_first":2000,"rows_last":500,"rows_between":2000,"halvings":0,"cell_chars":16384,"cell_head_chars":4096},"cells_cut":0,"cells_raw":0,"read":"whole","date_system":"1900"}

{"sheet":"AUW","index":0,"n_rows":56,"n_cols":14,"rows_kept":56,"cut":false,"hidden":false,"merged":[[8,6,8,13],[13,3,13,13],[12,3,12,13],[9,6,9,13],[54,0,54,1],[15,3,15,13],[16,3,16,13],[14,3,14,12],[11,3,11,13],[9,0,9,1],[55,0,55,1],[47,0,47,1],[50,0,50,1],[51,0,51,1],[17,0,20,1],[46,0,46,1],[48,0,48,1],[49,0,49,1],[4,10,5,13],[6,2,6,13],[2,4,2,8],[3,4,3,8],[0,1,0,2],[6,0,6,1],[57,2,57,12],[17,13,20,13],[18,10,20,10],[18,8,20,8],[18,12,20,12],[18,3,20,3],[18,6,20,6],[17,3,17,12],[54,2,54,3],[17,2,20,2],[18,4,20,4]]}
[null,"ALOHA UNITED WAY DEPOSIT SHEET \n"]
[]
[null,"File # 2020 -",null,"Company:"]
[null,"Account #",null,"Phone:"]
[null,null,null,null,null,null,null,null,null,null,"200 N. Vineyard Blvd., Suite 700, Honolulu, HI 96817\nPhone: 536-1951   \u009f   Fax: 543-2244"]
[]
[null,null,"Instructions"]
[]
[null,null,"1) Check Pledge Forms for:","\u009fiSignature",null,null,"\u009f For Credit Card: Number, Expiration, Billing Address, Phone"]
["Check one Method of Payment below:",null,null,null,null,null,"\u009f For Automatic Transfer: Voided Check Attached"]
[]
[null,null,"2) Enter Pledges:","Enter name of employee and their annual pledge amount under the Method of Payment they chose."]
[null,"Cash",null,"If employee has multiple methods of payment, list employee on their own Deposit Sheet."]
[null,"Check "]
[null,"Credit Card",null,"Note: The yellow cells are protected and will not allow you to edit.  Also cells with totals will automatically calculate."]
[null,"Automatic Transfer","3) Make the Deposit:","Enclose with this sheet: Pledge Form and if applicable cash, check, voided check."]
[null,"Payroll Deduction & Bill Me",null,"Schedule an appointment with an Aloha United Way representative and review all materials together."]
["NAME OF EMPLOYEE",null,"Total Amount\nContributed","Annual Donation",null,null,null,null,null,null,null,null,null,"AUW USE"]
[null,null,null,"Payroll Deduction","Bill Me",null,"Automatic Transfer",null,"Credit Card",null,"Cash",null,"Check"]
[]
[]
[1,null,{"$f":"SUM(D22:M22)","v":0}]
[2,null,0]
[3,null,0]
[4,null,0]
[5,null,0]
[6,null,0]
[7,null,0]
[8,null,0]
[9,null,0]
[10,null,0]
[11,null,0]
[12,null,0]
[13,null,0]
[14,null,0]
[15,null,0]
[16,null,0]
[17,null,0]
[18,null,0]
[19,null,0]
[20,null,0]
[21,null,0]
[22,null,0]
[23,null,0]
[24,null,0]
[25,null,0]
["Total Number of Pledges",null,0,{"$f":"COUNT(D22:D46)","v":0},{"$f":"COUNT(E22:E46)","v":0},null,0,null,0,null,0,null,0,0]
["Total Employee Donations",null,{"$f":"SUM(C22:C46)","v":0},{"$f":"SUM(D22:D46)","v":0},{"$f":"SUM(E22:E46)","v":0},null,0,null,0,null,0,null,0]
["Total Special Event",null,{"$f":"K49+M49","v":0}]
["Total Corporate Donation",null,{"$f":"K50+M50","v":0}]
["Total Corporate Match",null,{"$f":"K51+M51","v":0}]
["GRAND TOTAL",null,{"$f":"SUM(C48:C51)","v":0},{"$f":"D48","v":0},{"$f":"E48","v":0},null,{"$f":"G48","v":0},null,{"$f":"I48","v":0},null,{"$f":"SUM(K48:K51)","v":0},null,{"$f":"SUM(M48:M51)","v":0}]
[null,null,null,null,null,{"$f":"SUM(F52+#REF!+F51)","v":{"$error":"#REF!"}},null,{"$f":"SUM(H52+#REF!+H51)","v":{"$error":"#REF!"}},null,{"$f":"SUM(J52+#REF!+J51)","v":{"$error":"#REF!"}},null,{"$f":"SUM(L52+#REF!+L51)","v":{"$error":"#REF!"}}]
[]
["Campaign Coordinator's Name:",null,null,null,null,null,"Aloha United Way Representative:"]
["Signature:",null,null,null,null,null,"Signature:",null,null,null,"Date:"]